Cogmind - Beta 10.2 @@@ ROGUE MODE // 2020.11.11 @ 17:48:00 Player: Veon Result: Destroyed by D-53 Grenadier with Mini Grenade Launcher Performance ------------- Evolutions (1) 500 Regions Visited (3) 600 Robots Destroyed (22) 110 Value Destroyed (395) 395 Prototype IDs (1) 20 Alien Tech Used (0) 0 Bonus (0) 0 TOTAL SCORE: 1625 Bonus ------- None Cogmind --------- Core Integrity 0/400 Matter 218/300 Energy 94/100 System Corruption 2% Temperature Cool (1) Movement Walking (150) Ox1 Location -9/Mines Parts ------- > --- POWER (1) -------- (None) > --- PROPULSION (3) --- Aluminum Leg > --- UTILITY (3) ------ Small Storage Unit Large Storage Unit > --- WEAPON (2) ------- (None) > --- INVENTORY (12) --- Heavy Ion Engine Light Treads Light Treads Small Storage Unit Small Storage Unit Small Matter Pod (50) Sensor Array Peak State ------------ > --- POWER ------------ Heavy Ion Engine > --- PROPULSION ------- Aluminum Leg Aluminum Leg > --- UTILITY ---------- Small Storage Unit Large Storage Unit Propulsion Shielding > --- WEAPON ----------- Beam Rifle Autogun > --- INVENTORY -------- Ion Engine Light Treads Light Treads Small Storage Unit Small Storage Unit Small Matter Pod Sensor Array EM Pulse Gun Grenade Launcher Grenade Launcher Flail [Rating: 13] Favorites ----------- Power Light Ion Engine Engine Light Ion Engine Propulsion Aluminum Leg Leg Aluminum Leg Utility Small Storage Unit Device Improved Terrain Scanner Storage Small Storage Unit Protection Propulsion Shielding Weapon Assault Rifle Energy Gun Small Laser Ballistic Gun Assault Rifle Launcher Grenade Launcher Impact Weapon Flail Build | -11 -10 -9 -9 ------- Run | Scr Mat Mat Min Slots Evolved 2 | . . 2 . Power . | . . . . Propulsion 1 | . . 1 . Utility 1 | . . 1 . Weapon . | . . . . Parts Attached 29 | 9 . 16 4 Power 6 | 1 . 5 . Engine 6 | 1 . 5 . Core . | . . . . Reactor . | . . . . Propulsion 6 | 2 . 3 1 Treads . | . . . . Leg 6 | 2 . 3 1 Wheel . | . . . . Hover . | . . . . Flight . | . . . . Utility 8 | 4 . 4 . Device 2 | 1 . 1 . Storage 5 | 3 . 2 . Processor . | . . . . Hackware . | . . . . Protection 1 | . . 1 . Artifact . | . . . . Weapon 9 | 2 . 4 3 Energy Gun 4 | 1 . 2 1 Energy Cannon . | . . . . Ballistic Gun 2 | 1 . 1 . Ballistic Cannon . | . . . . Launcher 2 | . . . 2 Special Weapon . | . . . . Impact Weapon 1 | . . 1 . Slashing Weapon . | . . . . Piercing Weapon . | . . . . Special Melee Weapon . | . . . . Unidentified Prototypes 1 | . . 1 . Parts Lost 15 | . . 5 10 Power 2 | . . 1 1 Propulsion 5 | . . 2 3 Utility 1 | . . . 1 Weapon 7 | . . 2 5 Highest Loss Streak 10 | . . 2 10 Average Slot Usage (%) 93 | . 100 92 85 Engine 10 | . 14 10 6 Leg 27 | . 28 27 28 Storage 26 | . 28 26 22 Protection 3 | . . 3 10 Energy Gun 9 | . 14 8 8 Ballistic Gun 10 | . 14 9 9 Impact Weapon 2 | . . 3 . Naked Turns . | . . . . Heaviest Build 32 | 14 14 32 30 Greatest Support 30 | 20 20 30 30 Greatest Overweight (x) 1 | . . 1 1 Average Overweight (x) . | . . . . Largest Inventory Capacity 14 | 8 8 14 12 Average Capacity 10 | 5 8 12 12 Most Carried 12 | 7 8 12 11 Average Carried 8 | 4 7 10 10 Final Capacity 12 | 8 8 12 12 Final Carried 11 | 7 8 11 7 Class Distribution -------------------- 79% | Mutant 20% | Scavenger-Mutant Dominant Class ---------------- Mutant | -10/Materials Mutant | -9/Materials Scavenger-Mutant | -9/Mines Resources | -11 -10 -9 -9 ----------- Run | Scr Mat Mat Min Matter Collected 671 | 316 21 308 26 Remotely . | . . . . Salvage Created 825 | 154 45 557 69 Parts 62 | 16 6 40 . Haulers Intercepted 1 | . . 1 . Recyclers Shooed 1 | . . 1 . Parts Field Recycled . | . . . . Retrieved Matter . | . . . . Parts Self-Destructed . | . . . . Prevented . | . . . . Kills | -11 -10 -9 -9 ------- Run | Scr Mat Mat Min Combat Hostiles Destroyed 16 | . 3 7 6 Guns 15 | . 3 7 5 AOE 1 | . . . 1 Classes Destroyed 10 | 3 1 5 1 Worker 3 | 1 . 2 . Tunneler 2 | 2 . . . Hauler 1 | . . 1 . Recycler 2 | 1 . 1 . Operator 1 | . . 1 . Watcher 3 | . . 3 . Swarmer 3 | . 3 . . Grunt 5 | . . 5 . Sentry 2 | . . 2 . Assembled 6 | . . . 6 Best Kill Streak 6 | 2 3 4 6 Combat Bots Only 6 | . 3 3 6 Max Kills in Single Turn 1 | 1 1 1 1 Gunslinging . | . . . . Exploded 1 | . . . 1 Melee . | . . . . Uniques/NPCs Destroyed . | . . . . Combat | -11 -10 -9 -9 -------- Run | Scr Mat Mat Min Damage Taken 1809 | . 235 516 1058 Core 448 | . 37 92 319 Absorbed by Shields . | . . . . Core Remaining (%) 92 | 100 85 . . Volleys Fired 98 | 14 7 52 25 Largest 2 | 1 2 2 2 Hottest 79 | 40 60 79 79 Shots Fired 148 | 14 14 76 44 Gun 145 | 14 14 76 41 Cannon . | . . . . Launcher 3 | . . . 3 Special . | . . . . Kinetic 78 | . 7 49 22 Thermal 58 | 14 7 24 13 Explosive 3 | . . . 3 Electromagnetic 9 | . . 3 6 Robot Hit Streak 12 | 5 3 12 3 Robot Miss Streak 4 | 3 2 4 4 Penetration Max . | . . . . Secondary Targets 2 | . . . 2 Max Gunslinging Chain 1 | . . . 1 Shots Hit Robots 90 | 10 6 55 19 Core Hits 42 | 5 3 21 13 Critical Hits 1 | . . 1 . Critical Kills 1 | . . 1 . Critical Parts Destroyed . | . . . . Melee Attacks 2 | . . 2 . Impact 2 | . . 2 . Slashing . | . . . . Piercing . | . . . . Sneak Attacks . | . . . . Combat Hostiles . | . . . . Follow-up Attacks . | . . . . Damage Inflicted 1320 | 113 57 861 289 Guns 1211 | 113 57 827 214 Cannons . | . . . . Explosions 75 | . . . 75 Melee 34 | . . 34 . Ramming . | . . . . Kinetic 616 | . 23 481 112 Thermal 479 | 113 34 287 45 Explosive 75 | . . . 75 Electromagnetic 116 | . . 59 57 Impact 34 | . . 34 . Slashing . | . . . . Piercing . | . . . . Highest Corruption 2 | . . 2 2 Average Corruption 1 | . . 1 2 Corruption Purged . | . . . . Effects 5 | . . 3 2 Message Errors 1 | . . 1 . Energy Discharges 1 | . . 1 . Data Loss (minor) 2 | . . 1 1 Targeting Errors 1 | . . . 1 Overload Shots . | . . . . Overflow Damage . | . . . . Projectiles . | . . . . Explosions . | . . . . Melee . | . . . . Knockbacks . | . . . . Impact . | . . . . Kinetic . | . . . . Secondary . | . . . . Self-Inflicted Damage 8 | . . . 8 Shots 1 | . . . 1 Rammed . | . . . . Targets Rammed . | . . . . Kicked . | . . . . Crushed . | . . . . Highest Temperature 445 | . . 109 445 Average Temperature 153 | . . 47 232 Received Heat Transfer 778 | . 36 222 520 Effects 5 | . . . 5 Shutdowns 1 | . . . 1 Damage (minor) 1 | . . . 1 Damage (major) 3 | . . . 3 Siege Activations . | . . . . Robots Corrupted . | . . . . Combat Hostiles . | . . . . Parts Fried . | . . . . Impact Corruptions . | . . . . Robots Melted . | . . . . Combat Hostiles . | . . . . Parts Melted 1 | . . 1 . Heat Transferred 1153 | 250 75 717 111 Parts Sabotaged . | . . . . Parts Stolen . | . . . . Parts Stripped . | . . . . Power Chain Reactions . | . . . . Missiles Intercepted . | . . . . Alert | -11 -10 -9 -9 ------- Run | Scr Mat Mat Min Peak Influence 266 | 20 173 266 45 Initial 72 | . 13 72 45 Average 81 | 12 86 111 29 Maximum Alert Level 1 | . . 1 . Low Security (%) 93 | 100 100 88 100 Level 1 6 | . . 11 . Level 2 . | . . . . Level 3 . | . . . . Level 4 . | . . . . Level 5 . | . . . . High Security . | . . . . Max Security . | . . . . Squads Dispatched 5 | . 1 4 . Investigation . | . . . . Extermination . | . . . . Reinforcement 5 | . 1 4 . Assault . | . . . . Garrison . | . . . . Intercept . | . . . . Construction Impeded . | . . . . Haulers Reinforced . | . . . . Stealth | -11 -10 -9 -9 --------- Run | Scr Mat Mat Min Distress Signals 3 | . 1 2 . Communications Jammed . | . . . . Distress Signals . | . . . . Times Spotted 44 | . 12 15 17 Peak Tracking Total 10 | . 8 3 10 Tactical Retreats 2 | . . . 2 Traps | -11 -10 -9 -9 ------- Run | Scr Mat Mat Min Traps Triggered 2 | . . 2 . Indirectly . | . . . . Trap Hack Attempts . | . . . . Triggered . | . . . . Disarmed . | . . . . Reprogrammed . | . . . . Reused . | . . . . Traps Extracted . | . . . . Installed . | . . . . Triggered . | . . . . Machines | -11 -10 -9 -9 ---------- Run | Scr Mat Mat Min Machines Disabled 1 | . . 1 . Max in Single Turn 1 | . . 1 . Machines Sabotaged . | . . . . Garrisons Compromised . | . . . . Overloaded Fab Kills . | . . . . Fab Network Shutdowns . | . . . . Hacking | -11 -10 -9 -9 --------- Run | Scr Mat Mat Min Machines Accessed 2 | . . 2 . Terminals 2 | . . 2 . Fabricators . | . . . . Repair Stations . | . . . . Recycling Units . | . . . . Scanalyzers . | . . . . Garrison Access . | . . . . Total Hacks 3 | . . 3 . Successful 2 | . . 2 . Failed 1 | . . 1 . Catastrophic . | . . . . Database Lockouts . | . . . . Manual . | . . . . Terminals 3 | . . 3 . Fabricators . | . . . . Repair Stations . | . . . . Recycling Units . | . . . . Scanalyzers . | . . . . Garrison Access . | . . . . Terminal Hacks 2 | . . 2 . Maintenance Status 1 | . . 1 . Recall Reinforcements 1 | . . 1 . Fabricator Hacks . | . . . . Repair Station Hacks . | . . . . Recycling Unit Hacks . | . . . . Scanalyzer . | . . . . Garrison Access Hacks . | . . . . Unauthorized Hacks . | . . . . Terminals . | . . . . Fabricators . | . . . . Repair Stations . | . . . . Recycling Units . | . . . . Scanalyzers . | . . . . Garrison Access . | . . . . Data Cores Recovered . | . . . . Used . | . . . . Hacking Detections . | . . . . Full Trace Events . | . . . . Feedback Events . | . . . . Feedback Blocked . | . . . . Robot Schematics Acquired . | . . . . Robots Built . | . . . . Matter . | . . . . Time . | . . . . Total Robot Build Rating . | . . . . Part Schematics Acquired . | . . . . Parts Built . | . . . . Matter . | . . . . Time . | . . . . Total Part Build Rating . | . . . . Parts Repaired . | . . . . Time . | . . . . Parts Recycled . | . . . . Recycled Matter . | . . . . Retrieved Matter . | . . . . Retrieved Components . | . . . . Parts Scanalyzed . | . . . . Part Schematics Acquired . | . . . . Parts Damaged . | . . . . Bothacking | -11 -10 -9 -9 ------------ Run | Scr Mat Mat Min Used RIF Installer . | . . . . Robots Hacked . | . . . . Non-combat . | . . . . Combat . | . . . . Robot Hacks Applied . | . . . . Relay Couplers Released . | . . . . Robots Rewired . | . . . . Allies Hacked . | . . . . Hacks Repelled . | . . . . Allies | -11 -10 -9 -9 -------- Run | Scr Mat Mat Min Total Allies . | . . . . Largest Group . | . . . . Highest-Rated Group . | . . . . Highest-Rated Ally . | . . . . Total Orders . | . . . . Ally Attacks . | . . . . Total Damage . | . . . . Kills . | . . . . Allies Corrupted . | . . . . Allies Melted . | . . . . Intel | -11 -10 -9 -9 ------- Run | Scr Mat Mat Min Robot Analysis Total . | . . . . Derelict Logs Recovered . | . . . . Drone Launches . | . . . . Drone Recoveries . | . . . . Exploration | -11 -10 -9 -9 ------------- Run | Scr Mat Mat Min Turns Passed 1431 | 281 213 824 113 Spaces Moved 688 | 101 157 397 33 Core 12 | 12 . . . Treads . | . . . . Legs 676 | 89 157 397 33 Wheels . | . . . . Hover . | . . . . Flight . | . . . . Fastest Speed 50 | 50 120 120 120 Average Speed 126 | 111 120 133 129 Slowest Speed 150 | 120 120 150 150 Overloaded Moves . | . . . . Propulsion Burnouts . | . . . . Robots Hopped . | . . . . Cave-ins Triggered . | . . . . Exploration Rate (%) 22 | 5 33 36 16 Regions Visited 3 Branch Regions 1 Pre-discovered Areas . | . . . . Known Exits Taken . | . . . . Unknown Exits Taken 3 | 1 1 1 . Scrap Searched . | . . . . Spaces Dug . | . . . . Terrain Destroyed 16 | . . . 16 Melee . | . . . . Projectile . | . . . . AOE 16 | . . . 16 Terrain Rammed . | . . . . Walls Destroyed . | . . . . Machines Disabled . | . . . . Actions | -11 -10 -9 -9 --------- Run | Scr Mat Mat Min Total 1105 | 257 168 615 65 Wait 247 | 111 2 131 3 Move 685 | 100 156 396 33 Hop . | . . . . Pick Up 34 | 18 2 14 . Fast Attach . | . . . . Attach 19 | 8 . 7 4 Detach 1 | 1 . . . Swap 10 | 1 . 9 . Drop 9 | 4 1 4 . Fire 98 | 14 7 52 25 Melee 2 | . . 2 . Ram . | . . . . Kick . | . . . . Crush . | . . . . Escape Stasis . | . . . . Rewire . | . . . . Trap . | . . . . Miscellaneous . | . . . . Route ------- -11/Scrapyard -10/Materials -9/Materials -9/Mines History --------- Turn | Location | Event 2 | -11/Scrapyard | Met Revision 17 3 | -11/Scrapyard | Discovered new exit (range 15) 282 | -11/Scrapyard | Entered Materials 312 | -10/Materials | Build established: Mutant 339 | -10/Materials | Discovered new exit (range 16) 495 | -10/Materials | Entered another Materials area 495 | -9/Materials | Evolved 2 slots: Propulsion x1, Utility x1 1280 | -9/Materials | Discovered new exit (range 5) 1319 | -9/Materials | Entered Mines 1332 | -9/Mines | Assembled infested the area 1418 | -9/Mines | Core integrity fell below 50% 1426 | -9/Mines | Core integrity fell below 20% 1432 | -9/Mines | Destroyed by D-53 Grenadier with Mini Grenade Launcher Last Messages --------------- Switching to secondary target: as-05747. as-61821 destroyed. Acquired 15 matter. as-05747 destroyed. C-30 ARC bursts open, deploying its payload. D-53 Grenadier unfolds itself. EM Pulse Gun destroyed. Autogun destroyed. as-97934 destroyed. as-34417 destroyed. The unstable cave ceiling collapses. Grenade Launcher destroyed. D-53 Grenadier knocked back. as-90684 destroyed. Propulsion Shielding destroyed. as-12123 destroyed. Aluminum Leg destroyed. Grenade Launcher destroyed. The unstable cave ceiling collapses. as-76026 destroyed. Map ----- +----------------------------------------------------+ | ???????????????# ?????# ??????????????? | | ???????????????# ##### #???????????????? | | ???????????????# #????????????????? | | ???????????????# #????????????????? | | ???????????????# #?????????????????? | | ???????????????## # ###?????????? ?????? | | ????????????????##??# #??????? ? ?????? | | ????????????????????# #??????? ???????? | | ???????????????????## #?????? ????????? | | ???????????????##### #####?? #?????????? | | ??????????????## ### #??????????? | | ?????????????## # #??????????? | | ?????????????# #??????????? | | ????????????# #??????????? | | ????????????# #% #??????????? | | ????????????## ## # ##??????????? | | ?????????????### ## ##???????????? | | ???????????????## ## d #???????????? | | ????????????????#!?# d #???????????? | | ????????????????#%## #???????????? | | ????????????????# # ##??????????? | | ????????????????# # #??????????? | | ????????????????# # ##??????????? | | ?????????????#### #???????????? | | ?????????????# a ##???????????? | | ?????????????# @ #????????????? | | ?????????????# ## #?????????????? | | ?????????????# ??## #?????????????? | | ?????????????#????## #???????????? | | ???????????????????# #???????????? | | ???????????????????# ## ####???????????? | | ??????????????????? #?$#??????????????? | | ??????????????????? #??#??????????????? | | ??????????????????# #?????????????????? | | ?????????????????? ?????????????????? | | ?????????????????? ##????????????????? | | ?????????????????? ##?????????????????? | | ?????????????????? #??????????????????? | | ??????????????????? ??????????????????? | | ??????????????????? ??????????????????? | | ??????????????????????????????????????????? | | ??????????????????????????????????????????? | | ??????????????????????????????????????????? | | ??????????????????????????????????????????? | | ??????????????????????????????????????????? | | ??????????????????????????????????????????? | | ??????????????????????????????????????????? | | ??????????????????????????????????????????? | | ??????????????????????????????????????????? | | ??????????????????????????????????????????? | +----------------------------------------------------+ Best States ------------- Heat Dissipation 28 Energy Generation 10 Energy Capacity 250 Matter Stores 300 Matter Capacity 300 Sight Range 16 Robot Scan Range 10 Terrain Scan Range 16 Terrain Scan Density 10 Propulsion Shielding 33 Evasion (%) 40 Item Schematics ----------------- None Robot Schematics ------------------ None Fabricated ------------ Nothing Alien Tech Used ----------------- None Achievements -------------- None Challenges ------------ None Game ------ Seed PointThunderPlating Manual? 0 Play Time 00:34:19 Cumulative 5.7 hours Start 2020.11.11 @ 16:57:51 End 2020.11.11 @ 17:48:00 Sessions 1 Manual Loads 0 Difficulty Rogue Special Mode None Game No. 9 Rogue 9 Adventurer 0 Explorer 0 Win Type - Total 0 Types 0/0/0/0/0/0/0/0/0 Lore% 5 Gallery% 11 Achievement% 11 Wizard Run 0 Options --------- ASCII 0 Keyboard 0 Movement Numpad Keybinds 0 Fullscreen 1 Font 24/Proggy Map View 76x50 Tactical HUD 0 Map Filters NONE Filters NONE Steam 1 RUN: e4470f83-5577-479a-85fa-194edb59a983